bitfinex/quotes_BTCUSD_20240728
["timestamp","ask_amount","ask_price","bid_price","bid_amount"]
[1722177103364,0.001,67885.0,67884.0,0.134967]
[1722177103999,0.001,67885.0,67884.0,0.126967]
[1722177104000,0.02312283,67885.0,67884.0,0.126967]
[1722177104136,0.02312283,67885.0,67884.0,0.374663]
[1722177104564,0.02312283,67885.0,67884.0,0.138967]
[1722177104978,0.02312283,67885.0,67884.0,0.126967]
[1722177105584,0.02312283,67885.0,67884.0,0.362663]
[1722177106592,0.02312283,67885.0,67884.0,0.376463]
[1722177107456,0.117836,67891.0,67886.0,0.117844]
[1722177107611,0.04355234,67890.0,67886.0,0.116844]
[1722177107812,0.1,67893.0,67885.0,0.235692]
[1722177108056,0.1,67893.0,67884.0,0.036919]
[1722177108057,0.04357052,67892.0,67884.0,0.036919]
[1722177108293,0.217827,67896.0,67891.0,0.117835]
[1722177108537,0.0435711,67895.0,67891.0,0.117835]
[1722177108985,0.0435711,67895.0,67891.0,0.116835]
[1722177109479,0.0435711,67895.0,67886.0,0.009]
[1722177109480,0.11784,67889.0,67886.0,0.009]
[1722177109684,0.0435711,67888.0,67886.0,0.009]
[1722177109879,0.0435711,67888.0,67884.0,0.126766]
[1722177109880,0.04353393,67888.0,67884.0,0.126766]
[1722177110010,0.11784,67889.0,67884.0,0.126766]
[1722177110011,0.04353393,67887.0,67886.0,0.01]
[1722177110221,0.04353402,67887.0,67884.0,0.008919]
[1722177110419,0.117844,67886.0,67884.0,0.008919]
[1722177110614,0.16137956,67885.0,67884.0,0.008919]
[1722177111043,0.04353356,67885.0,67884.0,0.008919]
[1722177111254,0.117843,67887.0,67884.0,0.008919]
[1722177111255,0.04353356,67886.0,67885.0,0.117846]
[1722177111468,0.117836,67891.0,67886.0,0.117843]
[1722177111692,0.14367253,67890.0,67888.0,0.11784]
[1722177111839,0.1,67890.0,67888.0,0.11784]
[1722177112074,0.1,67890.0,67888.0,0.117839]
[1722177112441,0.1,67890.0,67884.0,0.08404879]
[1722177112442,0.1,67890.0,67889.0,0.117839]
[1722177112649,0.1,67890.0,67889.0,0.353517]
[1722177112650,0.14371386,67890.0,67889.0,0.353517]
[1722177112851,0.1,67890.0,67884.0,0.008919]
[1722177113017,0.1,67896.0,67884.0,0.008919]
[1722177113018,0.1,67889.0,67884.0,0.008919]
[1722177113490,0.044298,67888.0,67884.0,0.140766]
[1722177113713,0.044298,67888.0,67884.0,0.022919]
[1722177113714,0.1917,67885.0,67884.0,0.022919]
[1722177113940,0.353844,67885.0,67884.0,0.008919]
[1722177114157,0.589536,67885.0,67884.0,0.008919]
[1722177114399,0.589536,67885.0,67884.0,0.019919]
[1722177114654,0.589536,67885.0,67884.0,0.008919]
[1722177115102,0.6726496,67885.0,67884.0,0.008919]
[1722177115337,0.9685416,67885.0,67884.0,0.008919]
[1722177115614,0.9685416,67885.0,67884.0,0.022919]
[1722177115615,1.1489416,67885.0,67884.0,0.022919]
[1722177115877,1.50614859,67885.0,67884.0,0.022919]
[1722177116066,1.3403356,67885.0,67884.0,0.022919]
[1722177116304,1.5062525,67885.0,67884.0,0.022919]
[1722177116735,1.46260359,67885.0,67884.0,0.022919]
[1722177117173,1.5062525,67885.0,67884.0,0.008919]
[1722177117396,1.5062525,67885.0,67884.0,0.016919]
[1722177117397,1.38048999,67885.0,67884.0,0.016919]
[1722177117629,1.42412711,67885.0,67884.0,0.008919]
[1722177118265,1.45425384,67885.0,67884.0,0.009919]
[1722177118485,1.58238668,67885.0,67884.0,0.023919]
[1722177118725,1.53874956,67885.0,67884.0,0.023919]
[1722177119607,1.58238335,67885.0,67884.0,0.023919]
[1722177119800,1.48193226,67885.0,67884.0,0.023919]
[1722177120027,1.5395044,67885.0,67884.0,0.023919]
[1722177120448,1.58313322,67885.0,67884.0,0.023919]
[1722177120673,1.5315044,67885.0,67884.0,0.022919]
[1722177120903,1.8315044,67885.0,67884.0,0.022919]
[1722177121104,1.8315044,67885.0,67884.0,0.023919]
[1722177121105,1.6115044,67885.0,67884.0,0.023919]
[1722177121366,1.94877199,67885.0,67883.0,0.009119]
[1722177121577,1.50504951,67884.0,67883.0,0.009119]
[1722177121780,1.62811545,67884.0,67883.0,0.009119]
[1722177121980,1.67174468,67884.0,67883.0,0.009119]
[1722177122184,1.37811545,67884.0,67883.0,0.009119]
[1722177122409,1.65111545,67884.0,67883.0,0.009119]
[1722177122620,1.44473983,67884.0,67883.0,0.009119]
[1722177122825,1.30522669,67884.0,67883.0,0.009119]
[1722177123033,1.26160194,67884.0,67883.0,0.009119]
[1722177123409,1.23860194,67884.0,67883.0,0.009119]
[1722177123879,0.95290594,67884.0,67883.0,0.009119]
[1722177124279,0.95290594,67884.0,67883.0,0.010119]
[1722177124562,1.10316551,67884.0,67883.0,0.009119]
[1722177124862,1.33886151,67884.0,67883.0,0.009119]
[1722177125000,0.235713,67879.0,67878.0,0.009119]
[1722177125202,0.83908813,67879.0,67878.0,0.009119]
[1722177125407,1.41051413,67879.0,67878.0,0.009119]
[1722177126127,1.43364315,67879.0,67878.0,0.009119]
[1722177126484,1.41051413,67879.0,67878.0,0.009119]
[1722177127113,1.41351413,67879.0,67878.0,0.009119]
[1722177127916,1.264595,67879.0,67878.0,0.009119]
[1722177128118,1.30986139,67879.0,67878.0,0.009119]
[1722177129682,1.30986139,67879.0,67872.0,0.0152739]
[1722177129683,0.25,67873.0,67872.0,0.0152739]
[1722177129887,1.59266939,67873.0,67872.0,0.0152739]
[1722177130130,1.82155437,67873.0,67872.0,0.0152739]
[1722177130332,1.58582037,67873.0,67872.0,0.0152739]
[1722177130911,1.67306932,67873.0,67872.0,0.0152739]
[1722177131174,1.46292857,67873.0,67872.0,0.0222739]
[1722177131561,1.54155311,67873.0,67872.0,0.0222739]
[1722177131607,1.58518051,67873.0,67872.0,0.0222739]
[1722177131868,1.58705897,67873.0,67872.0,0.0222739]
[1722177132046,1.63068657,67873.0,67872.0,0.0222739]
[1722177132250,1.730427,67873.0,67872.0,0.0222739]
[1722177132393,1.4367994,67873.0,67872.0,0.0222739]
[1722177132594,1.48043317,67873.0,67872.0,0.0222739]
[1722177132800,1.4367994,67873.0,67872.0,0.0222739]
[1722177133422,1.48044561,67873.0,67872.0,0.0222739]
[1722177133624,1.38637821,67873.0,67872.0,0.0222739]
[1722177133824,1.43001741,67873.0,67872.0,0.0222739]
[1722177134229,1.28580028,67873.0,67872.0,0.0222739]
[1722177134426,1.28680028,67873.0,67872.0,0.0272739]
[1722177134629,1.263669,67873.0,67872.0,0.0272739]
[1722177134827,1.39657604,67873.0,67872.0,0.0272739]
[1722177136112,1.39657604,67873.0,67872.0,0.0268739]
[1722177137839,1.41970839,67873.0,67872.0,0.0268739]
[1722177138260,1.39657604,67873.0,67872.0,0.0267939]
[1722177140523,1.52042488,67873.0,67872.0,0.0267939]
[1722177140866,1.54255617,67873.0,67872.0,0.0197939]
[1722177141067,1.85129017,67873.0,67872.0,0.0197939]
[1722177141263,1.85029017,67873.0,67872.0,0.0167939]
[1722177141488,1.85029017,67873.0,67872.0,0.0147939]
[1722177141699,1.86708417,67873.0,67872.0,0.0147939]
[1722177141908,1.87708417,67873.0,67872.0,0.0167939]
[1722177142117,2.07708417,67873.0,67872.0,0.0167939]
[1722177142367,2.11708417,67873.0,67872.0,0.0157939]
[1722177142762,1.86708417,67873.0,67872.0,0.0147939]
[1722177143304,1.43744313,67873.0,67872.0,0.0147939]
[1722177143480,1.55665969,67873.0,67872.0,0.0157939]
[1722177143888,1.55679623,67873.0,67872.0,0.0157939]
[1722177144619,1.52058081,67873.0,67872.0,0.0157939]
[1722177145170,1.47444952,67873.0,67872.0,0.0157939]
[1722177145389,1.47444952,67873.0,67853.0,0.009119]
[1722177145390,1.47444952,67873.0,67817.0,0.065]
[1722177145391,0.144,67849.0,67817.0,0.065]
[1722177145591,0.144,67849.0,67837.0,0.45077872]
[1722177145592,0.58964,67838.0,67837.0,0.45077872]
[1722177145816,0.353856,67824.0,67818.0,0.0787]
[1722177145974,0.73518518,67824.0,67818.0,0.0787]
[1722177146607,0.97108918,67824.0,67818.0,0.0787]
[1722177146857,0.49928118,67824.0,67818.0,0.0787]
[1722177147054,0.26337718,67824.0,67818.0,0.0787]
[1722177147256,0.14542518,67824.0,67818.0,0.0787]
[1722177147465,0.04542518,67824.0,67818.0,0.0787]
[1722177147660,0.1,67828.0,67821.0,0.237913]
[1722177147860,0.10896562,67834.0,67821.0,0.002]
[1722177148060,0.02314657,67827.0,67824.0,0.117951]
[1722177148403,0.02314657,67827.0,67821.0,0.002]
[1722177148404,0.02314657,67827.0,67826.0,0.117948]
[1722177148579,0.1,67830.0,67826.0,0.182948]
[1722177148811,0.1,67830.0,67826.0,0.065]
[1722177149030,0.1,67830.0,67828.0,0.116944]
[1722177149202,0.00106033,67829.0,67828.0,0.116944]
[1722177149615,0.00106033,67833.0,67828.0,0.23589]
[1722177149788,0.00106033,67833.0,67832.0,0.117938]
[1722177150005,0.10106033,67840.0,67832.0,0.117938]
[1722177150333,0.001,67830.0,67829.0,0.117943]
[1722177150487,0.001,67830.0,67829.0,0.35383]
[1722177150890,0.001,67830.0,67829.0,0.4240028]
[1722177151097,0.001,67830.0,67829.0,0.7385898]
[1722177151476,0.001,67830.0,67829.0,0.903304]
[1722177151845,0.02414068,67830.0,67829.0,0.903304]
[1722177151999,0.002,67830.0,67829.0,0.903304]
[1722177152402,0.001,67830.0,67829.0,0.903304]
[1722177152602,0.001,67830.0,67829.0,0.968304]
[1722177152802,0.001,67830.0,67829.0,1.40264738]
[1722177153419,0.002,67830.0,67829.0,1.40264738]
[1722177153654,0.00106033,67851.0,67849.0,0.117908]
[1722177153872,0.00106033,67853.0,67847.0,0.235823]
[1722177154101,0.00106033,67853.0,67849.0,0.117908]
[1722177154249,0.309598,67855.0,67849.0,0.117908]
[1722177154250,0.00106033,67854.0,67849.0,0.117908]
[1722177154452,0.117902,67853.0,67844.0,0.235833]
[1722177154677,0.11896433,67852.0,67844.0,0.117917]
[1722177154878,0.00106033,67852.0,67839.0,0.235849]
[1722177155129,0.00106033,67847.0,67840.0,0.234848]
[1722177155240,0.235829,67846.0,67829.0,0.014]
[1722177155440,0.00106033,67840.0,67828.0,0.065]
[1722177155730,0.00106033,67840.0,67835.0,0.117932]
[1722177155931,0.11898433,67840.0,67832.0,0.235876]
[1722177156239,0.235849,67840.0,67828.0,0.065]
[1722177156467,0.235849,67840.0,67827.0,0.0787]
[1722177156468,0.117942,67830.0,67827.0,0.0787]
[1722177156679,0.545499,67835.0,67834.0,0.007]
[1722177157076,0.117938,67832.0,67827.0,0.0787]
[1722177157282,0.294961,67839.0,67823.0,0.245026]
[1722177157283,0.117952,67824.0,67823.0,0.009119]
[1722177157502,0.1917,67829.0,67823.0,0.009119]
[1722177157711,0.117949,67826.0,67823.0,0.009119]
[1722177157877,0.1917,67829.0,67823.0,0.009119]
[1722177157878,0.427587,67829.0,67823.0,0.009119]
[1722177158108,0.117949,67826.0,67823.0,0.009119]
[1722177158321,0.15323597,67825.0,67823.0,0.009119]
[1722177158508,0.15323597,67824.0,67823.0,0.009019]
[1722177158811,0.38309056,67824.0,67823.0,0.009019]
[1722177158987,0.0231443,67824.0,67823.0,0.009019]
[1722177159217,0.52418686,67824.0,67823.0,0.015019]
[1722177159347,0.73694656,67824.0,67823.0,0.017019]
[1722177159695,0.73694656,67824.0,67823.0,0.011019]
[1722177159696,0.50104256,67824.0,67823.0,0.011019]
[1722177159894,0.50104256,67824.0,67823.0,0.023019]
[1722177159895,0.50204256,67824.0,67823.0,0.023019]
[1722177160057,0.73794656,67824.0,67823.0,0.023019]
[1722177160438,0.97385056,67824.0,67823.0,0.023019]
[1722177160649,0.50204256,67824.0,67823.0,0.023019]
[1722177160945,0.38409056,67824.0,67823.0,0.023019]
[1722177161105,0.15423597,67824.0,67823.0,0.023019]
[1722177161724,0.15423597,67824.0,67823.0,0.021019]
[1722177161725,0.27218797,67824.0,67823.0,0.021019]
[1722177162077,0.355856,67824.0,67823.0,0.023019]
[1722177162285,0.5020443,67824.0,67823.0,0.011019]
[1722177162637,0.52418914,67824.0,67823.0,0.012019]
[1722177163027,0.52418914,67824.0,67823.0,0.009019]
[1722177163210,0.40623714,67824.0,67823.0,0.011019]
[1722177163415,0.17638081,67824.0,67823.0,0.011019]
[1722177163611,0.17738081,67824.0,67823.0,0.017019]
[1722177163876,0.27218797,67824.0,67823.0,0.017019]
[1722177163999,0.27118797,67824.0,67823.0,0.011019]
[1722177164502,0.15323597,67824.0,67823.0,0.011019]
[1722177164908,0.15323597,67824.0,67823.0,0.009019]
[1722177165120,0.235892,67828.0,67823.0,0.009019]
[1722177165121,0.11795,67826.0,67823.0,0.009019]
[1722177165387,0.38308928,67825.0,67823.0,0.010019]
[1722177165702,0.50103928,67825.0,67823.0,0.010019]
[1722177165906,0.38309017,67824.0,67823.0,0.009019]
[1722177166106,0.38309017,67824.0,67823.0,0.126973]
[1722177166107,0.15323597,67824.0,67823.0,0.126973]
[1722177166313,0.1917,67835.0,67824.0,0.0794]
[1722177166524,0.117944,67829.0,67824.0,0.19635]
[1722177166729,0.60100134,67828.0,67824.0,0.19635]
[1722177166949,0.15322369,67827.0,67824.0,0.11795]
[1722177167149,0.38366811,67826.0,67824.0,0.11795]
[1722177167374,0.38306782,67825.0,67824.0,0.11695]
[1722177167854,0.38306782,67825.0,67823.0,0.010019]
[1722177168062,0.38306782,67824.0,67823.0,0.010019]
[1722177168258,0.15322369,67824.0,67823.0,0.010019]
[1722177168569,0.15322623,67827.0,67823.0,0.010019]
[1722177168791,0.38412591,67826.0,67824.0,0.11795]
[1722177169048,0.15322623,67825.0,67824.0,0.11795]
[1722177169296,0.001,67824.0,67823.0,0.127972]
[1722177169447,0.15528656,67824.0,67823.0,0.127972]
[1722177169651,0.15422623,67824.0,67823.0,0.127972]
[1722177169890,0.15322623,67824.0,67823.0,0.126972]
[1722177170440,0.00106033,67827.0,67824.0,0.001]
[1722177170716,0.117947,67827.0,67825.0,0.00049387]
[1722177170919,0.38289402,67826.0,67824.0,0.001]
[1722177171159,0.38183369,67825.0,67824.0,0.001]
[1722177171369,0.15323054,67825.0,67824.0,0.236904]
[1722177171567,0.15323054,67827.0,67824.0,0.118952]
[1722177171781,0.15429087,67826.0,67824.0,0.118952]
[1722177171931,0.00106033,67826.0,67825.0,0.11795]
[1722177172148,0.00106033,67827.0,67825.0,0.11795]
[1722177172349,0.15322169,67826.0,67825.0,0.11795]
[1722177172509,0.15322169,67826.0,67825.0,0.589752]
[1722177172726,0.15322169,67826.0,67825.0,0.419551]
[1722177172727,0.15321032,67826.0,67825.0,0.419551]
[1722177172934,0.1,67832.0,67831.0,0.35382]
[1722177173129,0.1,67832.0,67831.0,0.11794]
[1722177173130,0.32969273,67832.0,67831.0,0.11794]
[1722177173339,0.48290229,67832.0,67830.0,0.117941]
[1722177173578,0.38405045,67831.0,67830.0,0.117941]
[1722177173893,0.25320956,67831.0,67830.0,0.116941]
[1722177174051,0.27635198,67831.0,67830.0,0.116941]
[1722177174253,0.12314242,67831.0,67830.0,0.116941]
[1722177174793,0.12314242,67831.0,67830.0,0.352824]
[1722177174794,0.02314242,67831.0,67830.0,0.352824]
[1722177174994,0.02314242,67831.0,67830.0,0.353824]
[1722177175262,0.4823998,67831.0,67830.0,0.112941]
[1722177175428,0.4823998,67831.0,67830.0,0.348824]
[1722177176148,0.4823998,67831.0,67830.0,0.428224]
[1722177176349,0.4823998,67831.0,67830.0,0.428024]
[1722177176350,0.25320956,67831.0,67830.0,0.428024]
[1722177176585,0.15320956,67831.0,67830.0,0.89979]
[1722177176782,0.00076316,67837.0,67830.0,0.0804]
[1722177176783,0.15318861,67836.0,67830.0,0.0804]
[1722177176991,0.15424847,67835.0,67834.0,0.589672]
[1722177177201,0.15424847,67835.0,67834.0,0.655372]
[1722177177406,0.15424847,67835.0,67834.0,0.891241]
[1722177177606,0.15318814,67835.0,67834.0,0.891241]
[1722177177806,0.0665,67850.0,67834.0,0.891241]
[1722177177807,0.3829525,67849.0,67836.0,0.235862]
[1722177178003,0.184407,67850.0,67844.0,0.117916]
[1722177178004,0.49021113,67848.0,67844.0,0.117916]
[1722177178216,0.4300518,67847.0,67843.0,0.235838]
[1722177178418,0.43111213,67846.0,67845.0,0.117914]
[1722177178639,0.38401386,67846.0,67845.0,0.589576]
[1722177178846,0.15318141,67846.0,67845.0,0.589576]
[1722177179058,0.15316254,67847.0,67846.0,0.235828]
[1722177179272,0.15316254,67847.0,67841.0,0.0784]
[1722177179467,0.117895,67857.0,67850.0,0.235812]
[1722177179692,0.43098859,67856.0,67852.0,0.117902]
[1722177179921,0.1483,67858.0,67854.0,0.2358]
[1722177179922,0.48925104,67855.0,67854.0,0.2358]
[1722177180156,0.44199335,67855.0,67854.0,0.3537]
[1722177180380,0.38290035,67855.0,67854.0,0.3537]
[1722177180608,0.31015583,67868.0,67855.0,0.235795]
[1722177180609,0.0665,67868.0,67855.0,0.235795]
[1722177180816,0.42990955,67867.0,67859.0,0.235781]
[1722177180988,0.43059023,67866.0,67861.0,0.235775]
[1722177181317,0.43059023,67866.0,67864.0,0.117882]
[1722177181318,0.38283795,67865.0,67864.0,0.117882]
[1722177181552,0.15313648,67865.0,67864.0,0.353647]
[1722177181757,0.059084,67867.0,67866.0,0.353637]
[1722177182174,0.44190436,67867.0,67866.0,0.353637]
[1722177182382,0.44190436,67867.0,67865.0,0.00049387]
[1722177182384,0.737695,67866.0,67865.0,0.00049387]
[1722177182596,0.737695,67866.0,67839.0,0.05]
[1722177182597,0.05,67864.0,67837.0,0.0794]
[1722177182816,0.05,67864.0,67832.0,0.00049387]
[1722177182817,0.0818,67849.0,67832.0,0.00049387]
[1722177183037,0.117914,67846.0,67832.0,0.00049387]
[1722177183231,0.428953,67848.0,67832.0,0.00049387]
[1722177183232,0.38282036,67845.0,67837.0,0.235857]
[1722177183430,0.15312814,67847.0,67846.0,0.117914]
[1722177183636,0.38250012,67847.0,67844.0,0.235835]
[1722177183792,0.38413631,67846.0,67845.0,0.363746]
[1722177184227,0.1541764,67846.0,67845.0,0.127915]
[1722177184431,0.1541764,67846.0,67845.0,0.363746]
[1722177184631,0.1541764,67846.0,67845.0,0.127915]
[1722177184863,0.1541764,67846.0,67845.0,0.363746]
[1722177185637,0.1541764,67846.0,67845.0,0.599577]
[1722177185841,0.1541764,67846.0,67845.0,0.363746]
[1722177186049,0.1541764,67846.0,67845.0,0.01]
[1722177186341,0.1531764,67846.0,67844.0,0.117917]
[1722177186593,0.1531764,67846.0,67844.0,0.353752]
[1722177186594,0.1531764,67845.0,67844.0,0.353752]
[1722177187162,0.1531764,67845.0,67844.0,0.117917]
[1722177187582,0.1531764,67845.0,67844.0,0.353752]
[1722177187784,0.1531764,67845.0,67844.0,0.647587]
[1722177187947,0.1531764,67845.0,67844.0,0.734287]
[1722177188147,0.1531764,67845.0,67844.0,0.784287]
[1722177188350,0.1531764,67845.0,67844.0,0.734287]
[1722177188552,0.1531764,67845.0,67844.0,0.784287]
[1722177188748,0.1531764,67845.0,67844.0,0.970122]
[1722177189054,0.1531764,67845.0,67844.0,1.020122]
[1722177189296,0.1531764,67845.0,67844.0,1.1221342]
[1722177189505,0.001,67846.0,67844.0,1.1221342]
[1722177189506,0.001,67846.0,67845.0,0.875408]
[1722177189922,0.001,67846.0,67845.0,0.874408]
[1722177190261,0.02313496,67846.0,67845.0,0.874408]
[1722177190482,0.00084,67855.0,67854.0,0.3537]
[1722177190686,0.00084,67855.0,67854.0,0.3527]
[1722177190886,0.00084,67855.0,67854.0,0.3517]
[1722177191086,0.00084,67855.0,67854.0,0.6365]
[1722177191317,0.15399473,67855.0,67854.0,0.5875]
[1722177191808,0.15399473,67855.0,67854.0,0.8233]
[1722177192003,0.00084,67855.0,67854.0,0.96]
[1722177192208,0.00084,67855.0,67854.0,0.77343029]
[1722177192410,0.15398134,67855.0,67854.0,0.77343029]
[1722177192684,0.15398134,67855.0,67854.0,0.82143029]
[1722177192884,0.15398134,67855.0,67854.0,0.77243029]
[1722177193417,0.15398134,67855.0,67854.0,0.6978]
[1722177193821,0.17711405,67855.0,67854.0,0.6978]
[1722177194627,0.15398134,67855.0,67854.0,0.6978]
[1722177195491,0.15398134,67855.0,67854.0,0.7098]
[1722177195856,0.15398134,67855.0,67854.0,0.7238]
[1722177196059,0.15398134,67855.0,67854.0,0.7118]
[1722177197129,0.15398134,67855.0,67854.0,0.1035]
[1722177197574,0.15398134,67855.0,67854.0,0.5751]
[1722177197868,0.15398134,67855.0,67854.0,0.3393]
[1722177198181,0.17811463,67855.0,67854.0,0.3523]
[1722177198998,0.15498134,67855.0,67854.0,0.1165]
[1722177199406,0.15498134,67855.0,67854.0,0.027]
[1722177199610,0.15498134,67855.0,67854.0,0.1319]
[1722177199611,0.15398134,67855.0,67854.0,0.1319]
[1722177199981,0.15398134,67855.0,67854.0,0.3677]
[1722177200141,0.15398134,67855.0,67854.0,0.3537]
[1722177200578,0.15498134,67855.0,67854.0,0.3807]
[1722177200782,0.15498134,67855.0,67854.0,0.6165]
[1722177201002,0.15498134,67855.0,67854.0,0.3667]
[1722177201429,0.15498134,67855.0,67854.0,0.013]
[1722177201604,0.15598134,67855.0,67854.0,0.013]
[1722177201956,0.15498134,67855.0,67854.0,0.013]
[1722177202166,0.15498134,67855.0,67854.0,0.027]
[1722177202332,0.17911482,67855.0,67854.0,0.027]
[1722177202540,0.14387148,67855.0,67854.0,0.027]
[1722177202745,0.73121339,67855.0,67854.0,0.027]
[1722177203298,0.49541739,67855.0,67854.0,0.027]
[1722177203592,0.73021339,67855.0,67854.0,0.014]
[1722177203800,0.49441739,67855.0,67854.0,0.014]
[1722177204526,0.49541739,67855.0,67854.0,0.027]
[1722177204732,0.44943147,67855.0,67854.0,0.027]
[1722177204931,0.49560234,67855.0,67854.0,0.027]
[1722177205131,0.44843147,67855.0,67854.0,0.027]
[1722177205340,0.4945529,67855.0,67854.0,0.027]
[1722177205584,0.3766549,67855.0,67854.0,0.027]
[1722177206122,0.3997899,67855.0,67854.0,0.027]
[1722177206252,0.40081881,67855.0,67854.0,0.027]
[1722177206598,0.3766549,67855.0,67854.0,0.027]
[1722177207218,0.37642657,67855.0,67854.0,0.027]
[1722177207423,0.37642657,67855.0,67854.0,0.6165]
[1722177207584,0.33053347,67855.0,67854.0,0.6808]
[1722177207785,0.15498134,67855.0,67854.0,0.6808]
[1722177208162,0.15498134,67855.0,67854.0,0.7298]
[1722177209299,0.15498134,67855.0,67854.0,0.9656]
[1722177209511,0.33053347,67855.0,67854.0,0.9656]
[1722177209719,0.02497387,67855.0,67854.0,0.9656]
[1722177209917,0.02497387,67855.0,67854.0,0.9013]
[1722177210119,0.15498134,67855.0,67854.0,1.00674298]
[1722177210768,0.15498134,67855.0,67854.0,0.9013]
[1722177211975,0.15498134,67855.0,67854.0,0.6165]
[1722177212671,0.15398134,67855.0,67854.0,0.6035]
[1722177213513,0.17711439,67855.0,67854.0,0.6035]
[1722177214077,0.17711439,67855.0,67854.0,0.5895]
[1722177214537,0.17711439,67855.0,67854.0,0.6035]
[1722177214737,0.17711439,67855.0,67854.0,0.6175]
[1722177216400,0.17711439,67855.0,67854.0,0.6665]
[1722177216566,0.17711439,67855.0,67854.0,0.73335]
[1722177216736,0.17711439,67855.0,67854.0,1.10945]
[1722177217140,0.17711439,67855.0,67854.0,1.11145]
[1722177217819,0.17711439,67855.0,67854.0,1.0946]
[1722177218020,0.17711439,67855.0,67854.0,1.2946]
[1722177218239,0.17711439,67855.0,67854.0,1.5304]
[1722177218859,0.02397305,67855.0,67854.0,1.5164]
[1722177219078,0.02397305,67855.0,67854.0,1.65265957]
[1722177219253,0.02397305,67855.0,67854.0,1.66665957]
[1722177219477,0.00084,67855.0,67854.0,1.80314415]
[1722177219691,0.00084,67855.0,67854.0,1.68065957]
[1722177220095,0.00084,67855.0,67854.0,1.66665957]
[1722177220910,0.00084,67855.0,67854.0,1.68065957]
[1722177221316,0.00084,67855.0,67854.0,1.66665957]
[1722177221718,0.00084,67855.0,67854.0,1.68065957]
[1722177222125,0.00084,67855.0,67854.0,1.66665957]
[1722177222508,0.00084,67855.0,67854.0,1.68065957]
[1722177222711,0.02397023,67855.0,67854.0,1.66665957]
[1722177223391,0.00084,67855.0,67854.0,1.66665957]
[1722177223796,0.00084,67855.0,67854.0,1.68065957]
[1722177224303,0.00084,67855.0,67854.0,1.93945957]
[1722177226678,0.02396898,67855.0,67854.0,1.93945957]
[1722177227219,0.02396898,67855.0,67854.0,1.70365957]
[1722177227543,0.02396898,67855.0,67854.0,1.93945957]
[1722177228744,0.02396898,67855.0,67854.0,1.92545957]
[1722177229467,0.02396898,67855.0,67854.0,1.93945957]
[1722177229885,0.02396898,67855.0,67854.0,1.92545957]
[1722177230088,0.0647,67878.0,67877.0,0.11786]
[1722177230434,0.39609767,67878.0,67877.0,0.35358]
[1722177230631,0.21780364,67878.0,67877.0,0.35358]
[1722177230828,0.21780364,67878.0,67877.0,0.4125103]
[1722177231224,0.39608509,67878.0,67877.0,0.4125103]
[1722177231423,0.21780364,67878.0,67877.0,0.4125103]
[1722177231786,0.21780364,67878.0,67877.0,0.8839503]
[1722177231787,0.39590183,67878.0,67877.0,0.8839503]
[1722177232176,0.21780364,67878.0,67877.0,0.8839503]
[1722177233211,0.15310364,67878.0,67877.0,0.8839503]
[1722177233420,0.0647,67882.0,67878.0,0.235716]
[1722177233630,0.0647,67882.0,67881.0,0.589265]
[1722177233838,0.21779604,67882.0,67881.0,0.589265]
[1722177236496,0.24092276,67882.0,67881.0,0.589265]
[1722177237135,0.24091923,67882.0,67881.0,0.589265]
[1722177237829,0.17621923,67882.0,67881.0,0.824971]
[1722177238024,0.17621923,67882.0,67881.0,1.02423057]
[1722177238582,0.17621923,67882.0,67881.0,1.03623057]
[1722177238736,0.17621923,67882.0,67881.0,0.98723057]
[1722177239165,0.17621923,67882.0,67881.0,0.97523057]
[1722177239537,0.17621923,67882.0,67881.0,0.98923057]
[1722177240412,0.17621923,67882.0,67881.0,0.838971]
[1722177240979,0.17621923,67882.0,67881.0,0.824971]
[1722177242311,0.17621923,67882.0,67881.0,0.353559]
[1722177242524,0.17621923,67882.0,67870.0,0.1434]
[1722177242525,0.001,67876.0,67861.0,0.049]
[1722177242838,0.001,67876.0,67871.0,0.11787]
[1722177242839,0.001,67872.0,67871.0,0.11787]
[1722177243044,0.001,67871.0,67870.0,0.117871]
[1722177243249,0.0647,67872.0,67869.0,0.117874]
[1722177243250,0.001,67870.0,67869.0,0.117874]
[1722177243448,0.001,67870.0,67861.0,0.049]
[1722177243449,0.15309251,67870.0,67861.0,0.049]
[1722177243803,0.1446,67872.0,67871.0,0.353611]
[1722177244013,0.19025931,67872.0,67871.0,0.589352]
[1722177244197,0.51727972,67872.0,67871.0,0.589352]
[1722177244403,0.51727972,67872.0,67871.0,0.353611]
[1722177244604,0.37267972,67872.0,67871.0,0.6482884]
[1722177244882,0.37267972,67872.0,67871.0,0.589352]
[1722177246460,0.39580721,67872.0,67871.0,0.825093]
[1722177247254,0.39580721,67872.0,67871.0,0.839093]
[1722177247657,0.39580721,67872.0,67871.0,0.825093]
[1722177248044,0.39580721,67872.0,67871.0,0.839093]
[1722177248628,0.39580721,67872.0,67871.0,0.850093]
[1722177249186,0.39580721,67872.0,67871.0,0.839093]
[1722177249561,0.39580721,67872.0,67871.0,0.617352]
[1722177249837,0.0646,67875.0,67874.0,0.353595]
[1722177250012,0.21771278,67875.0,67874.0,0.589325]
[1722177250446,0.0646,67875.0,67874.0,0.589325]
[1722177251459,0.0646,67875.0,67874.0,0.603325]
[1722177251647,0.0646,67875.0,67874.0,0.615325]
[1722177252237,0.0646,67875.0,67874.0,0.67886335]
[1722177252675,0.0646,67875.0,67874.0,0.615325]
[1722177264524,0.10846002,67875.0,67874.0,0.615325]
[1722177265547,0.04386002,67876.0,67875.0,0.589317]
[1722177265763,0.08472844,67876.0,67875.0,0.589317]
[1722177266421,0.10785525,67876.0,67875.0,0.589317]
[1722177267084,0.10785525,67876.0,67875.0,0.599317]
[1722177267394,0.02312681,67876.0,67875.0,0.686722]
[1722177267726,0.02312681,67876.0,67875.0,0.700722]
[1722177268179,0.06453168,67876.0,67875.0,0.700722]
[1722177268672,0.06458935,67876.0,67875.0,0.700722]
[1722177269348,0.1322009,67876.0,67875.0,0.700722]
[1722177271154,0.1760775,67876.0,67875.0,0.700722]
[1722177271952,0.13461345,67876.0,67875.0,0.613317]
[1722177272156,0.17610568,67876.0,67875.0,0.613317]